fUST/lending_fUST_20241107
["ID","MTS","AMOUNT","RATE_DAILY","PERIOD"]
[341530186,1730962233539,-500.0,0.00031878,2]
[341530188,1730962233549,-528.53164978,0.00031878,2]
[341530190,1730962233558,-500.0,0.00031878,2]
[341530192,1730962233568,-500.0,0.00031878,2]
[341530194,1730962233577,-645.50544499,0.00031878,2]
[341530196,1730962233587,-151.0,0.00031878,7]
[341530198,1730962233597,-151.0,0.00031878,7]
[341530200,1730962233606,-5000.0,0.00031878,2]
[341530202,1730962233617,-5000.0,0.00031878,2]
[341530204,1730962233626,-5000.0,0.00031878,2]
[341530206,1730962233635,-5000.0,0.00031878,2]
[341530208,1730962233645,-5000.0,0.00031878,2]
[341530210,1730962233655,-5000.0,0.00031878,2]
[341530212,1730962233664,-5000.0,0.00031878,2]
[341530214,1730962233677,-151.0,0.00031878,7]
[341530216,1730962233686,-5000.0,0.00031878,2]
[341530219,1730962233697,-151.0,0.00031878,7]
[341530221,1730962233712,-5000.0,0.00031878,2]
[341530223,1730962233722,-5000.0,0.00031878,2]
[341530225,1730962233732,-5000.0,0.00031878,2]
[341530227,1730962233742,-1047.98503986,0.00031878,2]
[341530242,1730962233875,-3952.01496014,0.00031878,2]
[341530244,1730962233885,-5000.0,0.00031878,2]
[341530246,1730962233895,-5000.0,0.00031878,2]
[341530248,1730962233904,-5000.0,0.00031878,2]
[341530250,1730962233914,-5000.0,0.00031878,2]
[341530252,1730962233923,-5000.0,0.00031878,2]
[341530254,1730962233933,-4594.87818462,0.00031878,2]
[341530439,1730962238293,-500.0,0.00031473,5]
[341530441,1730962238303,-502.52281995,0.00031473,5]
[341530443,1730962238312,-739.70791247,0.000315,7]
[341530445,1730962238322,-9989.24762828,0.000316,2]
[341530447,1730962238334,-3742.66226571,0.000316,2]
[341530449,1730962238343,-782.41,0.00031868,10]
[341530451,1730962238353,-405.12181538,0.00031878,2]
[341530453,1730962238362,-5000.0,0.00031878,2]
[341530455,1730962238371,-500.0,0.00031878,2]
[341530457,1730962238380,-5000.0,0.00031878,2]
[341530459,1730962238390,-5000.0,0.00031878,2]
[341530461,1730962238399,-5000.0,0.00031878,2]
[341530463,1730962238408,-5000.0,0.00031878,2]
[341530465,1730962238418,-5000.0,0.00031878,2]
[341530467,1730962238428,-5000.0,0.00031878,2]
[341530469,1730962238437,-5000.0,0.00031878,2]
[341530471,1730962238447,-5000.0,0.00031878,2]
[341530473,1730962238456,-5000.0,0.00031878,2]
[341530475,1730962238469,-5000.0,0.00031878,2]
[341530477,1730962238478,-5000.0,0.00031878,2]
[341530479,1730962238487,-5000.0,0.00031878,2]
[341530481,1730962238497,-5000.0,0.00031878,2]
[341530483,1730962238506,-5000.0,0.00031878,2]
[341530485,1730962238516,-521.16387277,0.00031878,2]
[341530487,1730962238525,-5000.0,0.00031878,2]
[341530489,1730962238535,-4533.32562841,0.00031878,2]
[341530491,1730962238547,-466.67437159,0.00031878,2]
[341530493,1730962238556,-5000.0,0.00031878,2]
[341530496,1730962238567,-5000.0,0.00031878,2]
[341530498,1730962238576,-3230.721983,0.00031878,2]
[341530500,1730962238588,-151.0,0.00031878,7]
[341530502,1730962238598,-151.0,0.00031878,7]
[341530504,1730962238609,-513.68474706,0.00031878,2]
[341530506,1730962238619,-151.0,0.00031878,7]
[341530508,1730962238629,-151.0,0.00031878,7]
[341530510,1730962238639,-500.0,0.00031878,2]
[341530512,1730962238649,-500.0,0.00031878,2]
[341530514,1730962238660,-500.0,0.00031878,2]
[341530516,1730962238672,-152.501288,0.00031878,7]
[341530519,1730962238683,-151.0,0.00031878,2]
[341530521,1730962238695,-151.0,0.00031878,2]
[341530523,1730962238705,-510.75479886,0.00031878,2]
[341530525,1730962238717,-500.0,0.00031878,2]
[341530527,1730962238727,-500.0,0.00031878,2]
[341530529,1730962238736,-500.0,0.00031878,2]
[341530531,1730962238746,-500.0,0.00031878,2]
[341530533,1730962238757,-505.28469774,0.00031878,2]
[341530535,1730962238766,-500.0,0.00031878,2]
[341530537,1730962238775,-500.0,0.00031878,2]
[341530539,1730962238784,-501.29232338,0.00031878,2]
[341530541,1730962238794,-500.0,0.00031878,2]
[341530543,1730962238803,-283.546548,0.00031878,7]
[341530545,1730962238813,-283.546548,0.00031878,7]
[341530547,1730962238823,-500.0,0.00031878,2]
[341530550,1730962238832,-283.546548,0.00031878,7]
[341530552,1730962238842,-283.546548,0.00031878,7]
[341530554,1730962238851,-500.0,0.00031878,2]
[341530555,1730962238860,-500.0,0.00031878,2]
[341530558,1730962238870,-500.0,0.00031878,2]
[341530559,1730962238880,-500.0,0.00031878,2]
[341530561,1730962238890,-500.0,0.00031878,2]
[341530564,1730962238901,-708.33,0.00031878,2]
[341530566,1730962238911,-500.0,0.00031878,2]
[341530568,1730962238920,-500.0,0.00031878,2]
[341530570,1730962238929,-510.21101436,0.00031878,2]
[341530572,1730962238939,-425.168219,0.00031878,7]
[341530574,1730962238949,-425.168219,0.00031878,7]
[341530576,1730962238958,-500.0,0.00031878,2]
[341530578,1730962238971,-425.168219,0.00031878,7]
[341530579,1730962238980,-425.168219,0.00031878,7]
[341530582,1730962238990,-425.168219,0.00031878,7]
[341530584,1730962238999,-612.9014461,0.00031878,2]
[341530586,1730962239010,-425.168219,0.00031878,7]
[341530588,1730962239019,-425.168219,0.00031878,7]
[341530590,1730962239029,-425.168219,0.00031878,7]
[341530592,1730962239038,-425.168219,0.00031878,7]
[341530594,1730962239048,-425.168223,0.00031878,7]
[341530596,1730962239057,-500.0,0.00031878,2]
[341530597,1730962239066,-626.22005119,0.00031878,2]
[341530599,1730962239077,-590.45,0.00031878,2]
[341530602,1730962239087,-500.0,0.00031878,2]
[341530603,1730962239096,-500.0,0.00031878,2]
[341530605,1730962239106,-598.82474973,0.00031878,2]
[341530607,1730962239116,-500.0,0.00031878,2]
[341530609,1730962239125,-500.0,0.00031878,2]
[341530611,1730962239134,-781.05254117,0.00031878,2]
[341530613,1730962239144,-214.171,0.00031879,30]
[341530615,1730962239153,-151.0,0.00031879,7]
[341530617,1730962239163,-151.0,0.00031879,7]
[341530619,1730962239172,-151.0,0.00031879,7]
[341530621,1730962239185,-151.0,0.00031879,7]
[341530623,1730962239203,-151.0,0.00031879,7]
[341530625,1730962239216,-10974.14481364,0.00031879,2]
[341530627,1730962239228,-16905.45186745,0.00031879,2]
[341530647,1730962239988,-500.0,0.00031878,2]
[341530648,1730962239998,-515.08759396,0.00031878,2]
[341530649,1730962240008,-22935.03142104,0.00031879,2]
[341530756,1730962243153,-500.0,0.00031473,5]
[341530758,1730962243163,-429.57464213,0.0003158,2]
[341530760,1730962243174,-274.7182939,0.0003158,2]
[341530763,1730962243184,-251.81548412,0.0003158,2]
[341530765,1730962243194,-500.0,0.00031878,2]
[341530768,1730962243203,-5493.99017985,0.00031879,2]
[341530770,1730962243216,-2215.56346984,0.00031879,2]
[341530772,1730962243227,-144581.34399018,0.00031879,2]
[341530774,1730962243236,-151.0,0.00031888,7]
[341530776,1730962243246,-500.0,0.00031888,2]
[341530778,1730962243255,-151.0,0.00031888,7]
[341530780,1730962243264,-151.0,0.00031888,7]
[341530782,1730962243274,-151.0,0.00031888,7]
[341530784,1730962243283,-500.0,0.00031888,2]
[341530786,1730962243292,-185.990326,0.00031888,7]
[341530788,1730962243301,-500.0,0.00031888,2]
[341530790,1730962243311,-151.0,0.00031888,7]
[341530792,1730962243320,-160.759828,0.00031888,7]
[341530794,1730962243330,-151.0,0.00031888,2]
[341530796,1730962243339,-151.0,0.00031888,2]
[341530798,1730962243349,-283.546548,0.00031888,7]
[341530800,1730962243358,-283.546548,0.00031888,7]
[341530802,1730962243368,-283.546548,0.00031888,7]
[341530804,1730962243377,-283.546548,0.00031888,7]
[341530806,1730962243387,-504.19273699,0.00031888,2]
[341530808,1730962243397,-500.0,0.00031888,2]
[341530810,1730962243406,-605.73606992,0.00031888,2]
[341530811,1730962243423,-506.24790784,0.00031888,2]
[341530812,1730962243433,-500.0,0.00031888,2]
[341530813,1730962243442,-170670.11297784,0.00031889,2]
[341531058,1730962246113,-500.0,0.00031499,2]
[341531060,1730962246122,-500.0,0.00031499,2]
[341531063,1730962246132,-321.94462379,0.00031499,2]
[341531065,1730962246142,-500.0,0.00031878,2]
[341531067,1730962246152,-34992.09952734,0.00031889,2]
[341531069,1730962246162,-151.0,0.00031889,7]
[341531071,1730962246173,-151.0,0.00031889,7]
[341531073,1730962246183,-151.0,0.00031889,7]
[341531075,1730962246193,-151.0,0.00031889,7]
[341531077,1730962246202,-151.0,0.00031889,7]
[341531079,1730962246212,-151.0,0.00031889,7]
[341531081,1730962246223,-151.0,0.00031889,7]
[341531083,1730962246233,-175.815459,0.00031889,7]
[341531085,1730962246243,-218.35937,0.00031889,7]
[341531087,1730962246252,-151.0,0.00031889,7]
[341531089,1730962246262,-151.0,0.00031889,7]
[341531091,1730962246272,-151.0,0.00031889,7]
[341531093,1730962246282,-285.055093,0.00031889,7]
[341531095,1730962246292,-151.0,0.00031889,7]
[341531097,1730962246302,-151.0,0.00031889,7]
[341531099,1730962246311,-151.0,0.00031889,7]
[341531101,1730962246321,-151.0,0.00031889,7]
[341531103,1730962246331,-151.0,0.00031889,7]
[341531105,1730962246340,-224.035399,0.00031889,7]
[341531107,1730962246349,-151.0,0.00031889,2]
[341531109,1730962246360,-151.0,0.00031889,2]
[341531112,1730962246373,-151.0,0.00031889,2]
[341531114,1730962246383,-151.0,0.00031889,2]
[341531116,1730962246393,-153.924141,0.00031889,2]
[341531118,1730962246403,-283.546548,0.00031889,7]
[341531120,1730962246413,-283.546548,0.00031889,7]
[341531122,1730962246423,-283.546548,0.00031889,7]
[341531123,1730962246432,-283.546548,0.00031889,7]
[341531126,1730962246441,-283.546548,0.00031889,7]
[341531128,1730962246451,-283.546548,0.00031889,7]
[341531130,1730962246460,-283.546548,0.00031889,7]
[341531131,1730962246471,-283.546548,0.00031889,7]
[341531133,1730962246481,-283.546548,0.00031889,7]
[341531135,1730962246490,-283.546548,0.00031889,7]
[341531137,1730962246500,-283.546548,0.00031889,7]
[341531139,1730962246510,-283.546544,0.00031889,7]
[341531141,1730962246519,-151.0,0.000319,7]
[341531143,1730962246529,-151.0,0.000319,7]
[341531145,1730962246539,-151.0,0.000319,7]
[341531147,1730962246549,-151.0,0.000319,7]
[341531149,1730962246559,-150.112233,0.000319,20]
[341531151,1730962246569,-150.112233,0.000319,19]
[341531153,1730962246579,-150.112233,0.000319,16]
[341531155,1730962246589,-52370.82985629,0.000319,2]
[341531879,1730962376864,1169.27083333,0.0002084,2]
[341531881,1730962465468,162.567586,0.00013973,2]
[341531883,1730962635813,189.62,0.0002084,2]
[341531889,1730962991363,1169.27083333,0.0002084,2]
[341531983,1730963432321,-774.0301614,0.00024679,2]
[341532078,1730963440172,-395.24067193,0.00024679,2]
[341532080,1730963440187,-500.0,0.00027239,2]
[341532081,1730963440201,-171.9198373,0.00028818,2]
[341532082,1730963440213,-811.2975114,0.00028893,2]
[341532083,1730963440224,-162.567586,0.00029349,2]
[341532084,1730963440239,-151.0,0.0003,120]
[341532085,1730963440263,-160.0,0.0003,2]
[341532086,1730963440276,-400.0,0.00030036,2]
[341532087,1730963440288,-151.141,0.00030037,2]
[341532088,1730963440300,-297.31,0.00030037,2]
[341532089,1730963440313,-1010.82,0.00030037,2]
[341532090,1730963440327,-1432.19705442,0.00030037,2]
[341532091,1730963440341,-961.80294558,0.00030037,2]
[341532092,1730963440352,-306.0,0.00030219,30]
[341532093,1730963440363,-401.895447,0.00030795,30]
[341532094,1730963440378,-153.0,0.00031178,30]
[341532095,1730963440390,-1291.74181619,0.00031478,2]
[341532096,1730963440405,-160.141,0.0003149,2]
[341532097,1730963440416,-500.0,0.00031499,2]
[341532098,1730963440429,-500.0,0.00031577,2]
[341532099,1730963440440,-500.0,0.00031577,2]
[341532100,1730963440452,-168.0,0.00031578,2]
[341532101,1730963440463,-530.7522515,0.00031578,2]
[341532102,1730963440475,-510.92050557,0.00031578,2]
[341532103,1730963440489,-500.0,0.00031578,2]
[341532104,1730963440501,-514.81286888,0.00031578,2]
[341532105,1730963440515,-524.99431469,0.00031578,2]
[341532106,1730963440527,-500.0,0.00031578,2]
[341532107,1730963440539,-520.53736665,0.00031578,2]
[341532108,1730963440551,-485.51773617,0.00031578,2]
[341532109,1730963440563,-508.57603131,0.00031578,2]
[341532110,1730963440574,-500.0,0.00031578,2]
[341532111,1730963440584,-554.57396362,0.00031578,2]
[341532112,1730963440594,-545.67411532,0.00031578,2]
[341532113,1730963440604,-529.5031926,0.00031578,2]
[341532114,1730963440615,-500.0,0.00031578,2]
[341532115,1730963440625,-500.0,0.00031578,2]
[341532116,1730963440635,-500.0,0.00031578,2]
[341532117,1730963440647,-508.18799003,0.00031578,2]
[341532118,1730963440659,-500.0,0.00031578,2]
[341532119,1730963440671,-523.50504079,0.00031578,2]
[341532120,1730963440684,-200.03843449,0.00031578,2]
[341532121,1730963440696,-500.0,0.00031578,2]
[341532122,1730963440707,-317.13667828,0.00031578,2]
[341532123,1730963440718,-692.89,0.00031578,2]
[341532124,1730963440732,-500.0,0.00031578,2]
[341532125,1730963440743,-500.0,0.00031578,2]
[341532126,1730963440755,-500.0,0.00031578,2]
[341532127,1730963440767,-500.0,0.00031578,2]
[341532128,1730963440780,-500.0,0.00031578,2]
[341532129,1730963440793,-500.0,0.00031578,2]
[341532130,1730963440804,-500.0,0.00031578,2]
[341532131,1730963440816,-948.21,0.00031578,2]
[341532132,1730963440827,-504.41077997,0.00031578,2]
[341532133,1730963440838,-500.0,0.00031578,2]
[341532134,1730963440849,-500.0,0.00031578,2]
[341532135,1730963440860,-500.0,0.00031578,2]
[341532136,1730963440871,-500.0,0.00031578,2]
[341532137,1730963440883,-500.0,0.00031578,2]
[341532138,1730963440894,-500.0,0.00031578,2]
[341532139,1730963440905,-500.0,0.00031578,2]
[341532140,1730963440916,-500.0,0.00031578,2]
[341532141,1730963440926,-500.0,0.00031578,2]
[341532142,1730963440937,-541.5844621,0.00031578,2]
[341532143,1730963440948,-500.0,0.00031578,2]
[341532144,1730963440959,-500.0,0.00031578,2]
[341532145,1730963440970,-500.0,0.00031578,2]
[341532146,1730963440981,-462.01355116,0.00031578,2]
[341532580,1730963605247,1169.27083333,0.0002084,2]
[341532581,1730963610354,162.567586,0.00013973,2]
[341532590,1730964007855,5000.0,0.00018096,2]
[341532591,1730964008198,5000.0,0.00018096,2]
[341532592,1730964008485,5000.0,0.00018096,2]
[341532593,1730964008769,5000.0,0.00018096,2]
[341532594,1730964009053,5000.0,0.00018096,2]
[341532595,1730964107612,178.32963391,0.0002,2]
[341532596,1730964216721,1169.27083333,0.0002084,2]
[341532597,1730964217886,162.567586,0.00013973,2]
[341532615,1730964515769,3061.66,0.00032375,120]
[341532713,1730964632253,-300.0,0.00021999,2]
[341532715,1730964632263,-247.050257,0.00022,2]
[341533324,1730964638452,-500.0,0.00021999,2]
[341533325,1730964638461,-500.0,0.00021999,2]
[341533326,1730964638471,-500.0,0.00021999,2]
[341533327,1730964638480,-500.0,0.00021999,2]
[341533328,1730964638490,-411.73536858,0.00021999,2]
[341533329,1730964638499,-500.0,0.00021999,2]
[341533330,1730964638509,-225.55239889,0.00021999,2]
[341533331,1730964638518,-534.11962951,0.00022,2]
[341533332,1730964638528,-15183.65307566,0.00022,30]
[341533333,1730964638594,-89723.15379,0.00022,30]
[341533334,1730964638604,-500.0,0.00022,2]
[341533335,1730964638613,-500.0,0.00022,2]
[341533336,1730964638735,-1000.0,0.0002337,2]
[341533337,1730964638744,-500.0,0.00024658,2]
[341533338,1730964638753,-500.0,0.00024658,2]
[341533339,1730964638762,-181.26440071,0.00024658,2]
[341533340,1730964638772,-1000.0,0.00025875,2]
[341533341,1730964638781,-1169.27083333,0.0002935,2]
[341533342,1730964638790,-151.0,0.0002976,6]
[341533343,1730964638799,-200.40539612,0.00029999,2]
[341533344,1730964638808,-192.30280573,0.00029999,2]
[341533345,1730964638817,-176.27083888,0.00029999,2]
[341533346,1730964638826,-20061.42110985,0.0003,5]
[341533347,1730964638835,-425.63534546,0.00030137,2]
[341533348,1730964638844,-151.0,0.00030546,6]
[341533349,1730964638854,-306.0,0.00030904,30]
[341533350,1730964638863,-1000.0,0.00031,120]
[341533351,1730964638872,-306.0,0.0003126,30]
[341533352,1730964638881,-151.0,0.00031333,7]
[341533353,1730964638890,-166.021,0.0003149,2]
[341533354,1730964638899,-680.05,0.00031567,10]
[341533355,1730964638909,-566.71,0.00031567,10]
[341533356,1730964638921,-708.39,0.00031576,2]
[341533357,1730964638931,-908.7,0.00031576,2]
[341533358,1730964638941,-500.0,0.00031576,2]
[341533360,1730964638952,-500.0,0.00031576,2]
[341533362,1730964638961,-500.0,0.00031576,2]
[341533363,1730964638972,-500.0,0.00031576,2]
[341533365,1730964638981,-678.81,0.00031576,2]
[341533367,1730964638992,-500.0,0.00031576,2]
[341533369,1730964639004,-500.0,0.00031576,2]
[341533371,1730964639014,-500.0,0.00031576,2]
[341533372,1730964639023,-500.0,0.00031576,2]
[341533373,1730964639032,-500.0,0.00031576,2]
[341533374,1730964639044,-500.0,0.00031576,2]
[341533375,1730964639056,-500.0,0.00031576,2]
[341533376,1730964639068,-185.34,0.00031576,2]
[341533377,1730964639080,-591.52,0.00031576,2]
[341533378,1730964639092,-500.0,0.00031577,2]
[341533379,1730964639103,-500.0,0.00031577,2]
[341533380,1730964639115,-214.172,0.00031577,29]
[341533381,1730964639126,-502.4898201,0.00031577,2]
[341533382,1730964639136,-500.0,0.00031577,2]
[341533383,1730964639148,-500.0,0.00031577,2]
[341533384,1730964639159,-500.0,0.00031577,2]
[341533385,1730964639169,-300.58638418,0.00031577,2]
[341533386,1730964639180,-508.72271693,0.00031577,2]
[341533387,1730964639192,-500.0,0.00031577,2]
[341533388,1730964639203,-514.51397834,0.00031577,2]
[341533389,1730964639214,-527.79531851,0.00031577,2]
[341533390,1730964639223,-500.0,0.00031577,2]
[341533391,1730964639233,-500.0,0.00031577,2]
[341533392,1730964639242,-500.0,0.00031577,2]
[341533393,1730964639251,-581.36704237,0.00031577,2]
[341533394,1730964639260,-575.22579887,0.00031577,2]
[341533395,1730964639269,-500.0,0.00031577,2]
[341533396,1730964639278,-307.09,0.00031577,2]
[341533397,1730964639287,-500.0,0.00031577,2]
[341533398,1730964639296,-440.60899483,0.00031577,2]
[341533399,1730964639305,-615.62101791,0.00031577,2]
[341533400,1730964639314,-500.0,0.00031577,2]
[341533401,1730964639323,-500.0,0.00031577,2]
[341533402,1730964639333,-500.0,0.00031577,2]
[341533403,1730964639342,-514.17309496,0.00031577,2]
[341533404,1730964639352,-469.3954435,0.00031577,2]
[341533405,1730964639364,-537.44007473,0.00031577,2]
[341533406,1730964639379,-250.0,0.00031577,2]
[341533407,1730964639389,-500.0,0.00031577,2]
[341533408,1730964639400,-500.0,0.00031577,2]
[341533409,1730964639410,-500.0,0.00031577,2]
[341533410,1730964639420,-593.51,0.00031577,2]
[341533411,1730964639432,-500.0,0.00031577,2]
[341533412,1730964639443,-246.45860959,0.00031577,2]
[341533413,1730964639458,-500.0,0.00031577,2]
[341533414,1730964639468,-500.0,0.00031577,2]
[341533415,1730964639477,-500.0,0.00031577,2]
[341533416,1730964639487,-500.0,0.00031577,2]
[341533417,1730964639497,-500.0,0.00031577,2]
[341533418,1730964639507,-500.0,0.00031577,2]
[341533419,1730964639516,-500.0,0.00031577,2]
[341533420,1730964639526,-523.05605701,0.00031577,2]
[341533421,1730964639535,-500.0,0.00031577,2]
[341533422,1730964639545,-507.13198181,0.00031577,2]
[341533423,1730964639554,-500.0,0.00031577,2]
[341533424,1730964639565,-500.0,0.00031577,2]
[341533425,1730964639574,-181.46733245,0.00031577,2]
[341533426,1730964639584,-500.0,0.00031577,2]
[341533427,1730964639593,-212.35099484,0.00031577,2]
[341533428,1730964639603,-531.60165368,0.00031577,2]
[341533429,1730964639612,-500.0,0.00031577,2]
[341533430,1730964639621,-500.0,0.00031577,2]
[341533431,1730964639630,-510.81742164,0.00031577,2]
[341533432,1730964639639,-500.0,0.00031578,2]
[341533433,1730964639648,-500.0,0.00031578,2]
[341533434,1730964639658,-531.77006607,0.00031578,2]
[341533436,1730964639668,-575.10155429,0.00031578,2]
[341533437,1730964639677,-500.0,0.00031578,2]
[341533438,1730964639686,-372.7612001,0.00031578,2]
[341533439,1730964639695,-500.0,0.00031578,2]
[341533440,1730964639705,-500.0,0.00031578,2]
[341533441,1730964639714,-500.0,0.00031578,2]
[341533442,1730964639724,-523.90700839,0.00031578,2]
[341533443,1730964639733,-500.0,0.00031578,2]
[341533446,1730964639743,-503.28147825,0.00031578,2]
[341533448,1730964639752,-500.0,0.00031578,2]
[341533450,1730964639761,-500.0,0.00031578,2]
[341533452,1730964639771,-520.09452173,0.00031578,2]
[341533454,1730964639780,-510.57971642,0.00031578,2]
[341533456,1730964639790,-500.0,0.00031578,2]
[341533458,1730964639799,-528.7632088,0.00031578,2]
[341533460,1730964639807,-500.0,0.00031578,2]
[341533462,1730964639817,-532.2917436,0.00031578,2]
[341533464,1730964639826,-500.0,0.00031578,2]
[341533466,1730964639836,-603.3899854,0.00031578,2]
[341533468,1730964639846,-500.0,0.00031578,2]
[341533470,1730964639855,-500.0,0.00031578,2]
[341533472,1730964639864,-500.62801595,0.00031578,2]
[341533474,1730964639873,-500.0,0.00031578,2]
[341533476,1730964639882,-511.73860284,0.00031578,2]
[341533477,1730964639892,-574.14378843,0.00031578,2]
[341533478,1730964639902,-505.49044665,0.00031578,2]
[341533479,1730964639911,-500.0,0.00031578,2]
[341533480,1730964639920,-500.0,0.00031578,2]
[341533481,1730964639929,-508.76318269,0.00031578,2]
[341533482,1730964639939,-504.88495705,0.00031578,2]
[341533483,1730964639948,-500.0,0.00031578,2]
[341533484,1730964639958,-500.0,0.00031578,2]
[341533485,1730964639967,-503.73724861,0.00031578,2]
[341533486,1730964639976,-230.63690467,0.00031578,2]
[341533487,1730964639985,-413.79265586,0.00031578,2]
[341533488,1730964639994,-500.0,0.00031578,2]
[341533489,1730964640004,-500.0,0.00031578,2]
[341533490,1730964640012,-260.53801076,0.00031578,2]
[341533491,1730964640022,-500.0,0.00031578,2]
[341533492,1730964640031,-500.0,0.00031578,2]
[341533493,1730964640040,-582.95772983,0.00031578,2]
[341533494,1730964640049,-500.0,0.00031578,2]
[341533495,1730964640058,-616.0435116,0.00031578,2]
[341533496,1730964640067,-434.32065727,0.00031578,2]
[341533497,1730964640076,-540.44155514,0.00031578,2]
[341533498,1730964640085,-513.54947774,0.00031578,2]
[341533499,1730964640094,-535.82859543,0.00031578,2]
[341533500,1730964640104,-521.13918533,0.00031578,2]
[341533501,1730964640113,-505.1648585,0.00031578,2]
[341533502,1730964640123,-549.8269404,0.00031578,2]
[341533503,1730964640135,-531.87555792,0.00031578,2]
[341533504,1730964640146,-500.0,0.00031578,2]
[341533505,1730964640159,-151.7396931,0.00031589,30]
[341533506,1730964640168,-230.71251643,0.0003179,3]
[341533507,1730964640178,-1000.0,0.000318,2]
[341533508,1730964640190,-3000.0,0.000318,9]
[341533509,1730964640198,-3000.0,0.0003181,9]
[341533510,1730964640211,-3000.0,0.0003182,9]
[341533511,1730964640222,-810.98,0.00031821,3]
[341533512,1730964640233,-500.0,0.00031829,2]
[341533513,1730964640245,-5236.16215,0.0003183,9]
[341533514,1730964640254,-34721.1378494,0.00031831,2]
[341533515,1730964640264,-541.90042446,0.00031841,7]
[341533516,1730964640274,-600.0,0.00031841,2]
[341533517,1730964640284,-8680.28446236,0.00031842,2]
[341533518,1730964640293,-708.39,0.0003185,2]
[341533519,1730964640304,-908.7,0.0003185,2]
[341533520,1730964640315,-500.0,0.0003185,2]
[341533521,1730964640324,-500.0,0.0003185,2]
[341533522,1730964640334,-500.0,0.0003185,2]
[341533523,1730964640343,-678.81,0.0003185,2]
[341533524,1730964640354,-500.0,0.0003185,2]
[341533525,1730964640364,-500.0,0.0003185,2]
[341533527,1730964640380,-500.0,0.0003185,2]
[341533529,1730964640390,-500.0,0.0003185,2]
[341533531,1730964640401,-500.0,0.0003185,2]
[341533534,1730964640412,-500.0,0.0003185,2]
[341533536,1730964640424,-308.46402576,0.0003185,2]
[341533538,1730964640434,-591.52,0.0003185,2]
[341533540,1730964640445,-500.0,0.00031851,2]
[341533541,1730964640456,-500.0,0.00031851,2]
[341533542,1730964640468,-469.55720457,0.00031851,2]
[341533543,1730964640479,-500.0,0.00031851,2]
[341533544,1730964640490,-500.0,0.00031851,2]
[341533545,1730964640502,-500.0,0.00031851,2]
[341533546,1730964640512,-500.0,0.00031851,2]
[341533547,1730964640522,-500.0,0.00031851,2]
[341533548,1730964640532,-500.0,0.00031851,2]
[341533549,1730964640543,-500.0,0.00031851,2]
[341533550,1730964640553,-250.0,0.00031851,2]
[341533551,1730964640563,-500.0,0.00031851,2]
[341533552,1730964640573,-500.0,0.00031851,2]
[341533554,1730964640583,-500.0,0.00031851,2]
[341533555,1730964640592,-500.0,0.00031851,2]
[341533556,1730964640601,-500.0,0.00031851,2]
[341533557,1730964640610,-500.0,0.00031851,2]
[341533558,1730964640620,-500.0,0.00031851,2]
[341533559,1730964640629,-500.0,0.00031851,2]
[341533560,1730964640639,-500.0,0.00031851,2]
[341533561,1730964640649,-500.0,0.00031851,2]
[341533562,1730964640658,-541.66962995,0.00031851,2]
[341533563,1730964640667,-500.0,0.00031851,2]
[341533564,1730964640679,-600.24762725,0.00031852,2]
[341533565,1730964640688,-500.0,0.00031852,2]
[341533566,1730964640698,-500.0,0.00031852,2]